bitfinex-derivatives/quotes_BTCF0:USTF0_20251108
["timestamp","ask_amount","ask_price","bid_price","bid_amount"]
[1762631513689,0.40718702,101960.0,101950.0,0.91285043]
[1762631519305,0.40718702,101960.0,101950.0,0.8775308]
[1762631521010,0.40718702,101960.0,101950.0,0.8795308]
[1762631521407,0.40718702,101960.0,101950.0,0.8805308]
[1762631528808,0.38421702,101960.0,101950.0,0.99866733]
[1762631529015,0.00014702,101960.0,101950.0,1.42462919]
[1762631529205,0.3608,101970.0,101960.0,0.1565]
[1762631529406,0.3608,101970.0,101960.0,0.56386664]
[1762631529915,0.3608,101970.0,101960.0,0.59403011]
[1762631530216,0.3608,101970.0,101960.0,0.71216664]
[1762631530514,0.40379702,101980.0,101970.0,0.05839]
[1762631530808,0.40379702,101980.0,101970.0,0.42805303]
[1762631531014,0.40379702,101980.0,101970.0,0.3099165]
[1762631532119,0.40479702,101980.0,101970.0,0.3099165]
[1762631535418,0.40479702,101980.0,101970.0,0.27462683]
[1762631535715,0.40479702,101980.0,101970.0,0.35504283]
[1762631537222,0.40479702,101980.0,101970.0,0.90448283]
[1762631538923,0.40479702,101980.0,101970.0,0.9397725]
[1762631540131,0.40479702,101980.0,101970.0,0.9417725]
[1762631540826,0.40379702,101980.0,101970.0,0.9427725]
[1762631541123,0.40379702,101980.0,101970.0,0.90748283]
[1762631544321,0.40379702,101980.0,101970.0,0.90742252]
[1762631545023,0.40379702,101980.0,101970.0,0.7893463]
[1762631545224,0.40379702,101980.0,101970.0,0.82463597]
[1762631545435,0.40379702,101980.0,101970.0,0.94271219]
[1762631547731,0.40379702,101980.0,101970.0,0.7893463]
[1762631552137,0.50188772,101980.0,101970.0,0.7893463]
[1762631552836,0.40379702,101980.0,101970.0,0.7893463]
[1762631555034,0.40379702,101980.0,101970.0,0.90742252]
[1762631556232,0.40379702,101980.0,101970.0,0.94271219]
[1762631559043,0.40379702,101980.0,101970.0,0.82463597]
[1762631563236,0.76459702,101980.0,101970.0,0.82463597]
[1762631563542,0.86268772,101980.0,101970.0,0.82463597]
[1762631564147,0.14108772,101980.0,101970.0,0.82463597]
[1762631564442,0.86268772,101980.0,101970.0,0.82463597]
[1762631564741,0.76459702,101980.0,101970.0,0.82463597]
[1762631565442,0.86268772,101980.0,101970.0,0.82463597]
[1762631567842,0.76459702,101980.0,101970.0,0.82463597]
[1762631570237,0.76459702,101980.0,101970.0,0.94271219]
[1762631572344,0.76459702,101980.0,101970.0,0.82463597]
[1762631574145,0.40379702,101980.0,101970.0,0.82463597]
[1762631574347,0.40379702,101980.0,101970.0,0.27519597]
[1762631576249,0.40379702,101980.0,101970.0,0.39327219]
[1762631577747,0.40379702,101980.0,101970.0,0.94267219]
[1762631580049,0.40379702,101980.0,101970.0,0.94167219]
[1762631580550,0.40379702,101980.0,101970.0,0.93967219]
[1762631590258,0.50188772,101980.0,101970.0,0.93967219]
[1762631590444,0.40379702,101980.0,101970.0,0.93967219]
[1762631591555,0.40379702,101980.0,101970.0,0.82159597]
[1762631591755,0.50188772,101980.0,101970.0,0.82159597]
[1762631592158,0.50188772,101980.0,101970.0,0.27219597]
[1762631593660,0.40379702,101980.0,101970.0,0.27219597]
[1762631594359,0.40379702,101980.0,101970.0,0.39027219]
[1762631595260,0.40379702,101980.0,101970.0,0.27219597]
[1762631595560,0.40379702,101980.0,101970.0,0.39027219]
[1762631595957,0.40379702,101980.0,101970.0,0.27219597]
[1762631596162,0.40379702,101980.0,101970.0,0.39027219]
[1762631597164,0.50188772,101980.0,101970.0,0.39027219]
[1762631597361,0.50188772,101980.0,101970.0,0.27219597]
[1762631597752,0.50188772,101980.0,101970.0,0.39027219]
[1762631598863,0.50188772,101980.0,101970.0,0.27219597]
[1762631599167,0.40379702,101980.0,101970.0,0.27219597]
[1762631600363,0.40379702,101980.0,101970.0,0.39027219]
[1762631602466,0.50188772,101980.0,101970.0,0.39027219]
[1762631602965,0.50188772,101980.0,101970.0,0.27219597]
[1762631603165,0.50188772,101980.0,101970.0,0.39027219]
[1762631603464,0.40379702,101980.0,101970.0,0.39027219]
[1762631603659,0.50188772,101980.0,101970.0,0.39027219]
[1762631604764,0.40379702,101980.0,101970.0,0.39027219]
[1762631606165,0.50188772,101980.0,101970.0,0.39027219]
[1762631606361,0.40379702,101980.0,101970.0,0.39029152]
[1762631606866,0.50188782,101980.0,101970.0,0.39029152]
[1762631607056,0.51394782,101980.0,101970.0,0.39029152]
[1762631611367,0.41585702,101980.0,101970.0,0.39029152]
[1762631611866,0.40379702,101980.0,101970.0,0.39029152]
[1762631616572,0.50188782,101980.0,101970.0,0.39029152]
[1762631618567,0.63204337,101980.0,101970.0,0.03528967]
[1762631618768,0.63204337,101980.0,101960.0,0.35666672]
[1762631618769,0.1562705,101970.0,101960.0,0.35666672]
[1762631618973,0.63516605,101970.0,101960.0,0.35666672]
[1762631619173,0.63516605,101970.0,101960.0,0.32649967]
[1762631619374,0.63516605,101970.0,101960.0,0.30370967]
[1762631619673,0.63516605,101970.0,101960.0,0.32649967]
[1762631620276,0.63516605,101970.0,101960.0,0.32749967]
[1762631620778,0.63516605,101970.0,101960.0,0.18019967]
[1762631621571,0.55224258,101970.0,101960.0,0.14491]
[1762631621771,0.67033813,101970.0,101960.0,0.14491]
[1762631622179,0.63516605,101970.0,101960.0,0.14491]
[1762631623884,0.63516605,101970.0,101960.0,0.15764]
[1762631624182,0.41897,101970.0,101960.0,0.27573555]
[1762631631686,0.40601,101970.0,101960.0,0.27573555]
[1762631633492,0.40601,101970.0,101960.0,0.3938311]
[1762631635190,0.40601,101970.0,101960.0,0.15764]
[1762631635382,0.40601,101970.0,101960.0,0.27573555]
[1762631635580,0.40601,101970.0,101960.0,0.3938311]
[1762631636287,0.40601,101970.0,101960.0,0.42912077]
[1762631645389,0.40601,101970.0,101960.0,0.42389659]
[1762631648297,0.53450346,101970.0,101960.0,0.29568313]
[1762631648491,0.41902,101970.0,101960.0,0.29568313]
[1762631649498,0.53450346,101970.0,101960.0,0.29568313]
[1762631649897,0.41902,101970.0,101960.0,0.29568313]
[1762631653601,0.77982,101970.0,101960.0,0.29568313]
[1762631655500,0.05822,101970.0,101960.0,0.29568313]
[1762631655699,0.77982,101970.0,101960.0,0.29568313]
[1762631656101,0.77982,101970.0,101960.0,0.30928313]
[1762631657505,0.76681,101970.0,101960.0,0.42476659]
[1762631660217,0.76681,101970.0,101960.0,0.47772364]
[1762631665711,0.40601,101970.0,101960.0,0.47772364]
[1762631666412,0.40601,101970.0,101960.0,0.36223608]
[1762631667412,0.40601,101970.0,101960.0,0.24675672]
[1762631667612,0.40601,101970.0,101960.0,0.36223608]
[1762631669521,0.419,101970.0,101960.0,0.36223608]
[1762631670012,0.419,101970.0,101960.0,0.30927903]
[1762631676522,0.40601,101970.0,101960.0,0.30927903]
[1762631681623,0.419,101970.0,101960.0,0.15740967]
[1762631681818,0.419,101970.0,101960.0,0.29565903]
[1762631682422,0.419,101970.0,101960.0,0.34861608]
[1762631683425,0.419,101970.0,101960.0,0.29565903]
[1762631685120,0.419,101970.0,101960.0,0.30946903]
[1762631685817,0.40601,101970.0,101960.0,0.30946903]
[1762631691618,0.41903,101970.0,101960.0,0.30946903]
[1762631692327,0.41903,101970.0,101960.0,0.29565903]
[1762631695231,0.41903,101970.0,101960.0,0.34861608]
[1762631695930,0.5171304,101970.0,101960.0,0.26431608]
[1762631696830,0.5171304,101970.0,101960.0,0.36242608]
[1762631697232,0.5171304,101970.0,101960.0,0.21135903]
[1762631697934,0.5171304,101970.0,101960.0,0.30946903]
[1762631699525,0.5171304,101970.0,101960.0,0.21135903]
[1762631699728,0.63260976,101970.0,101960.0,0.03728967]
[1762631699931,0.72053996,101970.0,101960.0,0.002]
[1762631700133,0.8330569,101970.0,101960.0,0.002]
[1762631700433,0.15646,101960.0,101950.0,0.14844702]
[1762631700635,0.55244088,101960.0,101950.0,0.14844702]
[1762631700937,0.55244088,101960.0,101950.0,0.24656672]
[1762631701234,0.55244088,101960.0,101950.0,0.14844702]
[1762631701429,0.81482277,101960.0,101950.0,0.14844702]
[1762631702039,0.81482277,101960.0,101950.0,0.00014702]
[1762631702738,0.81482277,101960.0,101950.0,0.00414702]
[1762631704235,0.81482277,101960.0,101940.0,0.54944]
[1762631704236,0.1497197,101950.0,101940.0,0.54944]
[1762631704440,0.62599906,101950.0,101940.0,0.54944]
[1762631704641,0.77402699,101950.0,101940.0,0.54944]
[1762631705741,0.77402699,101950.0,101940.0,0.55244]
[1762631706135,0.77402699,101950.0,101940.0,0.55544]
[1762631706938,0.77402699,101950.0,101940.0,0.6982193]
[1762631707238,0.65158763,101950.0,101940.0,0.7120293]
[1762631709236,0.65258763,101950.0,101940.0,0.7090293]
[1762631709444,0.65358763,101950.0,101940.0,0.7060293]
[1762631713846,0.65358763,101950.0,101940.0,0.1565893]
[1762631719151,0.29278763,101950.0,101940.0,0.1565893]
[1762631719354,1.01438763,101950.0,101940.0,0.1565893]
[1762631720055,0.29278763,101950.0,101940.0,0.1565893]
[1762631720352,1.01438763,101950.0,101940.0,0.1565893]
[1762631721854,1.02134763,101950.0,101940.0,0.1565893]
[1762631726054,0.29974763,101950.0,101940.0,0.1565893]
[1762631726260,1.05652851,101950.0,101940.0,0.1565893]
[1762631726559,1.05652851,101950.0,101940.0,0.1427792]
[1762631727766,0.1547492,101940.0,101930.0,0.15563011]
[1762631728061,0.5155492,101940.0,101930.0,0.15563011]
[1762631728447,0.63112627,101940.0,101930.0,0.27120718]
[1762631730662,0.5155492,101940.0,101930.0,0.27120718]
[1762631731664,0.40536,101940.0,101930.0,0.27120718]
[1762631733166,0.44054088,101940.0,101930.0,0.27120718]
[1762631733664,0.53867008,101940.0,101930.0,0.27120718]
[1762631735256,0.44054088,101940.0,101930.0,0.27120718]
[1762631737064,0.53867008,101940.0,101930.0,0.27120718]
[1762631739860,0.5034892,101940.0,101930.0,0.30649685]
[1762631740163,0.40536,101940.0,101930.0,0.30649685]
[1762631741767,0.5034892,101940.0,101930.0,0.30649685]
[1762631742366,0.40536,101940.0,101930.0,0.30649685]
[1762631743660,0.5034892,101940.0,101930.0,0.30649685]
[1762631745369,0.40536,101940.0,101930.0,0.30649685]
[1762631748964,0.76616,101940.0,101930.0,0.30649685]
[1762631751069,1.10750334,101940.0,101930.0,0.03555858]
[1762631751370,1.14268422,101940.0,101930.0,0.00026891]
[1762631751569,1.15252384,101940.0,101930.0,0.00026891]
[1762631756175,1.29989245,101940.0,101930.0,0.00026891]
[1762631758280,1.29989245,101940.0,101930.0,0.09840781]
[1762631758580,1.29989245,101940.0,101930.0,0.00026891]
[1762631758881,0.1196189,101930.0,101920.0,0.03528967]
[1762631759068,0.1196286,101920.0,101910.0,0.19129257]
[1762631759272,0.49785707,101920.0,101910.0,0.27157997]
[1762631759778,0.59600567,101920.0,101910.0,0.27157997]
[1762631760082,0.59407768,101920.0,101910.0,0.27157997]
[1762631760880,0.59507768,101920.0,101910.0,0.27157997]
[1762631761773,0.59607768,101920.0,101910.0,0.27157997]
[1762631761974,0.59607768,101920.0,101910.0,0.1560029]
[1762631762977,0.71165475,101920.0,101910.0,0.02218]
[1762631763179,0.71165475,101920.0,101910.0,0.1432982]
[1762631763676,0.71165475,101920.0,101910.0,0.04514]
[1762631763877,0.48050061,101920.0,101910.0,0.04514]
[1762631764075,0.71165475,101920.0,101910.0,0.1432982]
[1762631764275,0.1156382,101910.0,101900.0,0.38533349]
[1762631764477,0.4764382,101910.0,101900.0,0.26975642]
[1762631764778,0.4764382,101910.0,101900.0,0.38533349]
[1762631765983,0.8372382,101910.0,101900.0,0.38533349]
[1762631766284,0.95281527,101910.0,101900.0,0.38533349]
[1762631766974,0.95281527,101910.0,101900.0,0.19190769]
[1762631767981,0.73908,101910.0,101900.0,0.30748476]
[1762631768374,0.8372382,101910.0,101900.0,0.30748476]
[1762631769282,0.95281527,101910.0,101900.0,0.30748476]
[1762631769783,0.8372382,101910.0,101900.0,0.30748476]
[1762631770470,0.95281527,101910.0,101900.0,0.30748476]
[1762631770977,0.8372382,101910.0,101900.0,0.30748476]
[1762631771379,0.8372382,101910.0,101900.0,0.19190769]
[1762631771584,0.95281527,101910.0,101900.0,0.19190769]
[1762631771774,0.95281527,101910.0,101900.0,0.30748476]
[1762631775383,0.8372382,101910.0,101900.0,0.30748476]
[1762631775584,0.8372383,101910.0,101900.0,0.30748476]
[1762631775888,0.95281537,101910.0,101900.0,0.30748476]
[1762631776686,0.8372383,101910.0,101900.0,0.30748476]
[1762631778385,0.95281537,101910.0,101900.0,0.30748476]
[1762631779296,0.8372383,101910.0,101900.0,0.30748476]
[1762631779481,0.95281537,101910.0,101900.0,0.30748476]
[1762631780486,0.8372383,101910.0,101900.0,0.30748476]
[1762631780688,0.8372383,101910.0,101900.0,0.27219509]
[1762631781378,0.8372383,101910.0,101900.0,0.15661802]
[1762631781580,0.8372383,101910.0,101900.0,0.27219509]
[1762631785483,0.95281537,101910.0,101900.0,0.27219509]
[1762631785687,0.95281537,101910.0,101900.0,0.05845702]
[1762631786291,0.95281537,101910.0,101900.0,0.17403409]
[1762631786492,0.8372383,101910.0,101900.0,0.27220189]
[1762631786683,0.95281537,101910.0,101900.0,0.15662482]
[1762631786885,0.95281537,101910.0,101900.0,0.27220189]
[1762631788293,0.95281537,101910.0,101900.0,0.09831482]
[1762631788500,0.95281537,101910.0,101900.0,0.04350702]
[1762631788893,0.95281537,101910.0,101900.0,0.14167482]
[1762631789093,0.8372383,101910.0,101900.0,0.14167482]
[1762631789397,0.95281537,101910.0,101900.0,0.14167482]
[1762631790395,0.95289754,101910.0,101900.0,0.14167482]
[1762631791188,0.95289754,101910.0,101900.0,0.04350702]
[1762631791380,1.13571253,101910.0,101900.0,0.00014702]
[1762631792583,1.13571253,101910.0,101900.0,0.09831482]
[1762631792788,1.13571253,101910.0,101900.0,0.15564482]
[1762631792991,0.8372383,101910.0,101900.0,0.15564482]
[1762631793299,0.8372383,101910.0,101900.0,0.27130406]
[1762631793505,0.8372383,101910.0,101900.0,0.15564482]
[1762631794195,0.73908,101910.0,101900.0,0.27130406]
[1762631796899,0.8372382,101910.0,101900.0,0.27130406]
[1762631797791,0.73908,101910.0,101900.0,0.27130406]
[1762631799496,0.73908,101910.0,101900.0,0.30659373]
[1762631799700,0.3608,101910.0,101900.0,0.30659373]
[1762631799909,0.3608,101910.0,101900.0,0.35955078]
[1762631800203,0.38235201,101920.0,101910.0,0.1554882]
[1762631800500,0.40383201,101920.0,101910.0,0.27114744]
[1762631801505,0.40483201,101920.0,101910.0,0.27114744]
[1762631803104,0.40583201,101920.0,101910.0,0.27114744]
[1762631805504,0.40583201,101920.0,101910.0,0.41944744]
[1762631809796,0.00207201,101920.0,101910.0,0.53510668]
[1762631810002,0.00207201,101920.0,101910.0,0.38680668]
[1762631810700,0.02479201,101920.0,101910.0,0.38680668]
[1762631811905,0.02479201,101920.0,101910.0,0.35939416]
[1762631812102,0.02479201,101920.0,101910.0,0.4750534]
[1762631812310,0.02479201,101920.0,101910.0,0.42209635]
[1762631813707,0.02479201,101920.0,101910.0,0.97181635]
[1762631814217,0.02479201,101920.0,101910.0,1.12011635]
[1762631816010,0.00207201,101920.0,101910.0,1.12011635]
[1762631817013,0.00207201,101920.0,101910.0,1.36543635]
[1762631817714,0.00207201,101920.0,101910.0,1.12011635]
[1762631817905,0.00207201,101920.0,101910.0,1.36543635]
[1762631818214,0.00207201,101920.0,101910.0,1.72623635]
[1762631818517,0.00207201,101920.0,101910.0,1.48091635]
[1762631820304,0.00014702,101930.0,101920.0,0.05824]
[1762631820503,0.00014702,101930.0,101920.0,0.30733761]
[1762631821412,0.0021969,101930.0,101920.0,0.30733761]
[1762631822114,0.4054669,101930.0,101920.0,0.30733761]
[1762631823812,0.4034669,101930.0,101920.0,0.30733761]
[1762631825209,0.4034669,101930.0,101920.0,0.19167837]
[1762631825408,0.4034669,101930.0,101920.0,0.85697761]
[1762631827017,0.4034669,101930.0,101920.0,0.93539202]
[1762631832010,0.4034669,101930.0,101920.0,1.08369202]
[1762631835919,0.5016059,101930.0,101920.0,1.08369202]
[1762631837717,0.5016059,101930.0,101920.0,0.93539202]
[1762631838315,0.4034669,101930.0,101920.0,0.93539202]
[1762631838524,0.5016059,101930.0,101920.0,0.93539202]
[1762631839521,0.4034669,101930.0,101920.0,0.93539202]
[1762631840422,0.4034669,101930.0,101920.0,0.81973278]
[1762631840723,0.5016059,101930.0,101920.0,0.93539202]
[1762631843626,0.5016059,101930.0,101920.0,1.08369202]
[1762631845924,0.4034669,101930.0,101920.0,1.08369202]
[1762631846319,0.4034669,101930.0,101920.0,1.13664907]
[1762631847424,0.5016059,101930.0,101920.0,1.13664907]
[1762631848725,0.5016059,101930.0,101920.0,1.08369202]
[1762631849424,0.5016059,101930.0,101920.0,0.90993466]
[1762631849622,0.5016059,101930.0,101920.0,0.85697761]
[1762631850924,0.5016059,101930.0,101920.0,0.74131837]
[1762631852420,0.5016059,101930.0,101920.0,0.85690285]
[1762631852620,0.4034669,101930.0,101920.0,0.85690285]
[1762631853429,0.5016059,101930.0,101920.0,0.85690285]
[1762631854531,0.5016059,101930.0,101920.0,0.30726285]
[1762631854826,0.8624059,101930.0,101920.0,0.30726285]
[1762631857028,0.7642669,101930.0,101920.0,0.30726285]
[1762631857731,0.8624059,101930.0,101920.0,0.30726285]
[1762631858922,0.7642669,101930.0,101920.0,0.30726285]
[1762631860031,0.7642669,101930.0,101920.0,0.42284733]
[1762631860425,0.7642669,101930.0,101920.0,0.47580438]
[1762631861127,0.7428569,101930.0,101920.0,0.47580438]
[1762631861323,0.7217969,101930.0,101920.0,0.47580438]
[1762631864036,0.7433869,101930.0,101920.0,0.47580438]
[1762631865126,0.0217869,101930.0,101920.0,0.47580438]
[1762631865329,0.3825869,101930.0,101920.0,0.47580438]
[1762631868540,0.4051369,101930.0,101920.0,0.47580438]
[1762631869442,0.0443369,101930.0,101920.0,0.47580438]
[1762631869638,0.4051369,101930.0,101920.0,0.47580438]
[1762631870329,0.4051369,101930.0,101920.0,1.02544438]
[1762631871547,0.4051369,101930.0,101920.0,0.99015471]
[1762631872944,0.4051369,101930.0,101920.0,1.13845471]
[1762631874345,0.3825869,101930.0,101920.0,1.13845471]
[1762631874545,0.0001969,101930.0,101920.0,1.13845471]
[1762631879341,0.0001969,101930.0,101920.0,1.49931919]
[1762631879839,0.0001969,101930.0,101920.0,1.57716841]
[1762631880046,0.0001969,101930.0,101920.0,1.93796841]
[1762631880254,0.0001969,101930.0,101920.0,1.71036426]
[1762631880548,0.0001969,101930.0,101920.0,1.95764426]
[1762631880753,0.0001969,101930.0,101920.0,1.71436426]
[1762631880948,0.0001969,101930.0,101920.0,1.95964426]
[1762631881147,0.0001969,101930.0,101920.0,1.71436426]
[1762631881452,0.0001969,101930.0,101920.0,1.95964426]
[1762631881653,0.0001969,101930.0,101920.0,1.71436426]
[1762631881955,0.0001969,101930.0,101920.0,1.95964426]
[1762631882649,0.40506,101950.0,101940.0,0.1555794]
[1762631882854,0.40506,101950.0,101940.0,0.38674836]
[1762631883447,0.40506,101950.0,101940.0,0.4220439]
[1762631884256,0.40606,101950.0,101940.0,0.4220439]
[1762631884456,0.40706,101950.0,101940.0,0.4220439]
[1762631885253,0.40706,101950.0,101940.0,0.38674836]
[1762631886157,0.40706,101950.0,101940.0,0.1555794]
[1762631886459,0.40706,101950.0,101940.0,0.4220439]
[1762631886758,0.40706,101950.0,101940.0,0.38674836]
[1762631888158,0.40706,101950.0,101940.0,0.93630836]
[1762631889258,0.40706,101950.0,101940.0,0.7051394]
[1762631889556,0.40706,101950.0,101940.0,0.93630836]
[1762631893454,0.40706,101950.0,101940.0,1.08460836]
[1762631896659,0.40706,101950.0,101940.0,1.1199039]
[1762631897758,0.40606,101950.0,101940.0,1.1199039]
[1762631897958,0.40606,101950.0,101940.0,1.1219039]
[1762631898758,0.40506,101950.0,101940.0,1.1219039]
[1762631898961,0.40506,101950.0,101940.0,1.1229039]
[1762631899461,0.40506,101950.0,101940.0,1.1209039]
[1762631899760,0.40506,101950.0,101940.0,1.1199039]
[1762631905968,0.04426,101950.0,101940.0,1.1199039]
[1762631906176,0.40506,101950.0,101940.0,1.1199039]
[1762631911278,0.40506,101950.0,101940.0,1.17284721]
[1762631914379,0.40506,101950.0,101940.0,1.17271353]
[1762631919183,0.04426,101950.0,101940.0,1.17271353]
[1762631920184,0.4410679,101960.0,101950.0,0.1568498]
[1762631920378,0.40588702,101960.0,101950.0,0.85720287]
[1762631921379,0.40588702,101960.0,101950.0,1.00550287]
[1762631922077,0.40788702,101960.0,101950.0,1.05844618]
[1762631923689,0.04708702,101960.0,101950.0,1.05844618]
[1762631924989,0.00214702,101960.0,101950.0,1.05844618]
[1762631926589,0.00114702,101960.0,101950.0,1.05844618]
[1762631926791,0.00114702,101960.0,101950.0,1.05944618]
[1762631927089,0.00014702,101960.0,101950.0,1.06144618]
[1762631928581,0.00014702,101960.0,101950.0,1.27394618]
[1762631928888,0.00014702,101960.0,101950.0,1.23863075]
[1762631929687,0.40716,101980.0,101970.0,0.1545806]
[1762631929889,0.40716,101980.0,101970.0,0.27009824]
[1762631931083,0.40816,101980.0,101970.0,0.27009824]
[1762631931293,0.40816,101980.0,101970.0,0.38561588]
[1762631931485,0.38506,101980.0,101970.0,0.38561588]
[1762631931881,0.38606,101980.0,101970.0,0.38561588]
[1762631933593,0.40916,101980.0,101970.0,0.38561588]
[1762631937692,0.3628,101980.0,101970.0,0.38561588]
[1762631938393,0.3859,101980.0,101970.0,0.38561588]
[1762631938788,0.0251,101980.0,101970.0,0.38561588]
[1762631940293,0.0251,101980.0,101970.0,0.53391588]
[1762631940588,0.0251,101980.0,101970.0,0.89471588]
[1762631940985,0.002,101980.0,101970.0,1.17512267]
[1762631941188,0.002,101980.0,101970.0,1.18483737]
[1762631941384,0.00014702,101990.0,101980.0,0.1557209]
[1762631941580,0.00014702,101990.0,101980.0,0.41953854]
[1762631942189,2e-08,101990.0,101980.0,0.66728533]
[1762631942399,2e-08,101990.0,101980.0,1.02792297]
[1762631942594,0.00200002,101990.0,101980.0,1.02792297]
[1762631942895,0.00200002,101990.0,101980.0,0.91240533]
[1762631943088,0.00400002,101990.0,101980.0,0.66728533]
[1762631943294,0.00400002,101990.0,101980.0,0.91240533]
[1762631943497,0.00200002,101990.0,101980.0,0.91240533]
[1762631943690,0.00200002,101990.0,101980.0,0.91440533]
[1762631943997,0.40698,102010.0,102000.0,0.1557017]
[1762631944192,0.40698,102010.0,102000.0,0.27121934]
[1762631944787,0.40698,102010.0,102000.0,0.38673698]
[1762631944990,0.40698,102010.0,102000.0,0.27121934]
[1762631945694,0.40698,102010.0,102000.0,0.38673698]
[1762631945997,0.40898,102010.0,102000.0,0.38673698]
[1762631947696,0.40898,102010.0,102000.0,0.93605698]
[1762631948395,0.04818,102010.0,102000.0,0.93605698]
[1762631950301,0.0251,102010.0,102000.0,0.93605698]
[1762631950496,0.002,102010.0,102000.0,0.93605698]
[1762631951705,0.0251,102010.0,102000.0,0.93605698]
[1762631952005,0.04818,102010.0,102000.0,0.7050217]
[1762631952205,0.04818,102010.0,102000.0,0.93605698]
[1762631953206,0.04818,102010.0,102000.0,0.7050217]
[1762631953406,0.04818,102010.0,102000.0,0.93605698]
[1762631953709,0.04818,102010.0,102000.0,1.01484135]
[1762631957608,0.40898,102010.0,102000.0,1.01484135]
[1762631958006,0.40898,102010.0,102000.0,1.16314135]
[1762631960009,0.40898,102010.0,102000.0,0.93210607]
[1762631960213,0.40898,102010.0,102000.0,1.16314135]
[1762631968318,0.3628,102010.0,102000.0,1.16314135]
[1762631968507,0.002,102010.0,102000.0,1.52394135]
[1762631968708,0.002,102010.0,102000.0,1.55918814]
[1762631970114,0.002,102010.0,102000.0,1.61205833]
[1762631970310,0.002,102010.0,102000.0,1.55918814]
[1762631970716,0.002,102010.0,102000.0,1.61205833]
[1762631971811,0.001,102010.0,102000.0,1.61205833]
[1762631972012,0.001,102010.0,102000.0,1.61605833]
[1762631972218,0.40723702,102020.0,102010.0,0.1548821]
[1762631972413,0.40723702,102020.0,102010.0,0.96785974]
[1762631973719,0.40723702,102020.0,102010.0,0.96885974]
[1762631976515,0.40723702,102020.0,102010.0,1.08406232]
[1762631982917,0.04643702,102020.0,102010.0,1.08406232]
[1762631983123,0.40723702,102020.0,102010.0,1.08406232]
[1762631991031,0.04643702,102020.0,102010.0,1.08406232]
[1762631991235,0.40723702,102020.0,102010.0,1.11930911]
[1762631997942,0.50528952,102020.0,102010.0,1.003949]
[1762631998139,0.41804702,102020.0,102010.0,1.003949]
[1762631998333,0.77884702,102020.0,102010.0,1.003949]
[1762631999344,0.76803702,102020.0,102010.0,1.003949]
[1762632000142,0.8140279,102020.0,102010.0,0.842959]
[1762632000336,0.8150279,102020.0,102010.0,0.841959]
[1762632000533,0.8160279,102020.0,102010.0,0.855319]
[1762632000847,0.8052179,102020.0,102010.0,0.855319]
[1762632001345,0.9032704,102020.0,102010.0,0.855319]
[1762632002542,0.8052179,102020.0,102010.0,0.855319]
[1762632002845,0.77003702,102020.0,102010.0,0.855319]
[1762632003444,0.77003702,102020.0,102010.0,0.97067911]
[1762632003636,0.77003702,102020.0,102010.0,1.0235493]
[1762632003637,0.40923702,102020.0,102010.0,1.0235493]
[1762632004839,0.40923702,102020.0,102010.0,1.1718493]
[1762632010047,0.36294702,102020.0,102010.0,1.1718493]
[1762632010346,0.40881702,102020.0,102010.0,1.1718493]
[1762632011348,0.40881702,102020.0,102010.0,1.11897911]
[1762632011547,0.40881702,102020.0,102010.0,1.1718493]
[1762632012151,0.40881702,102020.0,102010.0,1.11897911]
[1762632015953,0.50686952,102020.0,102010.0,1.11897911]
[1762632016150,0.50686952,102020.0,102010.0,1.1718493]
[1762632016540,0.40881702,102020.0,102010.0,1.1718493]
[1762632016747,0.00214702,102020.0,102010.0,1.11897911]
[1762632017058,0.00214702,102020.0,102010.0,1.25196262]
[1762632017258,0.00214702,102020.0,102010.0,1.13660251]
[1762632023950,0.02518702,102020.0,102010.0,1.13660251]
[1762632024151,0.40881702,102020.0,102010.0,1.13660251]
[1762632025655,0.38598702,102020.0,102010.0,1.13660251]
[1762632025851,0.40781702,102020.0,102010.0,1.13660251]
[1762632026255,0.00214702,102020.0,102010.0,1.13660251]
[1762632031968,0.00214702,102020.0,102010.0,1.49740251]
[1762632038570,0.00214702,102020.0,102010.0,1.38202027]
[1762632039165,0.04555702,102020.0,102010.0,1.38202027]
[1762632039371,0.04555702,102020.0,102010.0,1.02122027]
[1762632039571,0.00214702,102020.0,102010.0,1.02122027]
[1762632040273,0.02372702,102020.0,102010.0,1.02122027]
[1762632040572,0.04555702,102020.0,102010.0,1.02122027]
[1762632047177,0.00214702,102020.0,102010.0,1.02122027]
[1762632048273,0.00214702,102020.0,102010.0,0.96835008]
[1762632048478,0.00214702,102020.0,102010.0,1.03898298]
[1762632049274,0.40568702,102020.0,102010.0,1.03898298]
[1762632049470,0.41549702,102020.0,102010.0,0.6041066]
[1762632049772,0.2680875,102020.0,102010.0,0.0549466]
[1762632049974,0.04388702,102020.0,102010.0,0.21022613]
[1762632050171,0.76548702,102020.0,102010.0,0.30828823]
[1762632050978,0.86353942,102020.0,102010.0,0.30828823]
[1762632051478,0.76448702,102020.0,102010.0,0.30828823]
[1762632051677,0.76448702,102020.0,102010.0,0.31028823]
[1762632051981,0.86253942,102020.0,102010.0,0.31028823]
[1762632052275,0.86253942,102020.0,102010.0,0.30828823]
[1762632052577,0.76448702,102020.0,102010.0,0.30828823]
[1762632053077,0.76448702,102020.0,102010.0,0.30628823]
[1762632053280,0.76648702,102020.0,102010.0,0.30628823]
[1762632060885,0.76648702,102020.0,102010.0,0.85544823]
[1762632063686,0.86453942,102020.0,102010.0,0.74011015]
[1762632063991,0.87534942,102020.0,102010.0,0.75738613]
[1762632064787,0.87534942,102020.0,102010.0,0.85544823]
[1762632064990,0.87534942,102020.0,102010.0,0.84146823]
[1762632065484,0.87534942,102020.0,102010.0,0.05691815]
[1762632065689,0.83260942,102020.0,102010.0,0.0980621]
[1762632065890,0.1546321,102010.0,102000.0,0.9890898]
[1762632066188,0.5154321,102010.0,102000.0,0.32478543]
[1762632066390,0.5154321,102010.0,102000.0,0.27183883]
[1762632066592,0.5154321,102010.0,102000.0,0.29421883]
[1762632067394,0.5154321,102010.0,102000.0,0.29521883]
[1762632068291,0.41737,102010.0,102000.0,0.29521883]
[1762632068891,0.515432,102010.0,102000.0,0.25892068]
[1762632069086,0.516432,102010.0,102000.0,0.25892068]
[1762632069488,0.517432,102010.0,102000.0,0.25892068]
[1762632069689,0.517432,102010.0,102000.0,0.0980627]
[1762632070087,0.517432,102010.0,102000.0,0.1212027]
[1762632070288,0.517432,102010.0,102000.0,0.1435827]
[1762632071990,0.1544516,102000.0,101990.0,0.30832745]
[1762632072196,0.5152516,102000.0,101990.0,0.29437745]
[1762632073084,0.5152516,102000.0,101990.0,0.2135593]
[1762632073284,0.5152516,102000.0,101990.0,0.2145593]
[1762632073487,0.5152516,102000.0,101990.0,0.2376993]
[1762632073790,0.40551,102000.0,101990.0,0.2737593]
[1762632074995,0.5035816,102000.0,101990.0,0.2737593]
[1762632077999,0.40551,102000.0,101990.0,0.2737593]
[1762632078186,0.5035816,102000.0,101990.0,0.2737593]
[1762632080401,0.40551,102000.0,101990.0,0.2737593]
[1762632080695,0.5035817,102000.0,101990.0,0.2737593]